fUSD/lending_fUSD_20250507
["ID","MTS","AMOUNT","RATE_DAILY","PERIOD"]
[360232786,1746642640446,-1434.04625,0.000199,2]
[360232788,1746642640940,-1003.24505817,0.000199,2]
[360232790,1746642640951,-486.74444412,0.000199,2]
[360232792,1746642640962,-106.18984361,0.000199,2]
[360232794,1746642640972,-150.0,0.00019927,2]
[360232796,1746642640982,-103.58036912,0.0001993,2]
[360232797,1746642640993,-46.41963088,0.0001993,2]
[360232798,1746642641002,-307.47814145,0.00019969,2]
[360232799,1746642641014,-142.52185855,0.00019969,2]
[360232800,1746642641024,-450.0,0.00019969,2]
[360232801,1746642641033,-431.13314144,0.00019969,2]
[360232802,1746642641056,-18.86685856,0.00019969,2]
[360232803,1746642641066,-450.0,0.00019969,2]
[360232804,1746642641076,-408.35698216,0.00019969,2]
[360232805,1746642641086,-450.0,0.00019969,2]
[360232806,1746642641096,-450.0,0.00019969,2]
[360232807,1746642641105,-450.0,0.00019969,2]
[360232808,1746642641117,-450.0,0.00019969,2]
[360232809,1746642641126,-450.0,0.00019969,2]
[360232810,1746642641136,-450.0,0.00019969,2]
[360232811,1746642641146,-450.0,0.00019969,2]
[360232812,1746642641156,-1142.8,0.00019969,2]
[360232813,1746642641165,-162.4,0.0001997,2]
[360232814,1746642641175,-507.03,0.0001997,2]
[360232815,1746642641185,-1850.632,0.00019972,2]
[360232816,1746642641195,-171.058,0.00019972,2]
[360232817,1746642641204,-500.0,0.00019973,2]
[360232818,1746642641214,-500.0,0.00019973,2]
[360232819,1746642641224,-500.0,0.00019973,2]
[360232820,1746642641234,-500.0,0.00019973,2]
[360232821,1746642641244,-500.0,0.00019973,2]
[360232822,1746642641254,-500.0,0.00019973,2]
[360232823,1746642641264,-337.12528022,0.00019973,2]
[360232824,1746642641274,-150.0,0.00019977,2]
[360232825,1746642641284,-450.0,0.00019979,2]
[360232826,1746642641293,-450.0,0.00019979,2]
[360232827,1746642641303,-450.0,0.00019979,2]
[360232828,1746642641313,-450.0,0.00019979,2]
[360232829,1746642641323,-450.0,0.00019979,2]
[360232830,1746642641333,-258.23,0.00019979,2]
[360232831,1746642641343,-450.0,0.00019979,2]
[360232832,1746642641352,-450.0,0.00019979,2]
[360232833,1746642641365,-450.0,0.00019979,2]
[360232834,1746642641378,-450.0,0.00019979,2]
[360232835,1746642641389,-450.0,0.00019979,2]
[360232836,1746642641398,-450.0,0.00019979,2]
[360232837,1746642641409,-697.59,0.00019979,2]
[360232838,1746642641419,-450.0,0.00019979,2]
[360232839,1746642641430,-450.0,0.00019979,2]
[360232840,1746642641440,-450.0,0.00019979,2]
[360232841,1746642641451,-857.48,0.00019979,2]
[360232842,1746642641462,-450.0,0.00019979,2]
[360232843,1746642641472,-193.85671986,0.00019979,2]
[360232844,1746642641483,-160.633239,0.00019979,2]
[360232845,1746642641493,-450.0,0.00019979,2]
[360232846,1746642641502,-450.0,0.00019979,2]
[360232847,1746642641512,-450.0,0.00019979,2]
[360232848,1746642641523,-5975.526777,0.00019979,2]
[360232849,1746642641533,-450.0,0.00019979,2]
[360232850,1746642641543,-450.0,0.00019979,2]
[360232851,1746642641553,-524.81,0.00019979,2]
[360232852,1746642641563,-1469.748321,0.00019979,2]
[360232853,1746642641573,-1556.210202,0.00019979,2]
[360232854,1746642641582,-450.0,0.00019979,2]
[360232855,1746642641592,-450.0,0.00019979,2]
[360232856,1746642641602,-450.0,0.00019979,2]
[360232857,1746642641614,-250.08224419,0.00019979,2]
[360232858,1746642641628,-148385.3686251,0.0001998,2]
[360232859,1746642641638,-524.56884496,0.00019984,2]
[360232860,1746642641648,-310.46227507,0.00019984,2]
[360232861,1746642641658,-848.00183441,0.00019984,2]
[360232862,1746642641668,-546.3385394,0.00019984,2]
[360232863,1746642641677,-36679.54000889,0.00019985,2]
[360232864,1746642641690,-4060.2404628,0.00019985,2]
[360232865,1746642641700,-636.9055505,0.00019986,2]
[360232866,1746642641710,-727.4725615,0.00019986,2]
[360232867,1746642641719,-818.0395726,0.00019986,2]
[360232868,1746642641729,-908.6065836,0.00019986,2]
[360232869,1746642641739,-507.03,0.00019987,2]
[360232870,1746642641749,-4015.0,0.00019992,2]
[360232871,1746642641759,-6307.367,0.00019992,2]
[360232872,1746642641768,-879.0,0.00019992,2]
[360232873,1746642641778,-878.0,0.00019992,2]
[360232874,1746642641787,-798.0,0.00019992,2]
[360232875,1746642641797,-150.0,0.00019993,2]
[360232876,1746642641806,-450.0,0.00019996,2]
[360232877,1746642641816,-450.0,0.00019996,2]
[360232878,1746642641826,-231.24,0.00019996,2]
[360232879,1746642641835,-450.0,0.00019996,2]
[360232880,1746642641844,-450.0,0.00019996,2]
[360232881,1746642641854,-450.0,0.00019996,2]
[360232882,1746642641866,-450.0,0.00019996,2]
[360232883,1746642641876,-341.30547546,0.00019996,2]
[360232884,1746642641885,-180.94,0.00019996,2]
[360232885,1746642641895,-285.52,0.00019996,2]
[360232886,1746642641905,-353.09450314,0.00019996,2]
[360232887,1746642641914,-400.87378546,0.00019996,2]
[360232888,1746642641924,-450.0,0.00019996,2]
[360232889,1746642641933,-450.0,0.00019996,2]
[360232890,1746642641942,-500.0,0.00019996,2]
[360232891,1746642641951,-196.90439369,0.00019996,2]
[360232892,1746642641961,-441.26407556,0.00019996,2]
[360232893,1746642641970,-450.0,0.00019996,2]
[360232894,1746642641979,-458.19467588,0.00019996,2]
[360232895,1746642641989,-508.03536594,0.00019996,2]
[360232896,1746642641998,-450.0,0.00019996,2]
[360232897,1746642642008,-540.744246,0.00019996,2]
[360232898,1746642642017,-296.57,0.00019996,2]
[360232899,1746642642027,-177.00135766,0.00019996,2]
[360232900,1746642642036,-450.0,0.00019996,2]
[360232901,1746642642046,-450.0,0.00019996,2]
[360232902,1746642642055,-524.14694293,0.00019996,2]
[360232903,1746642642065,-450.0,0.00019996,2]
[360232904,1746642642074,-450.0,0.00019996,2]
[360232905,1746642642084,-538.23,0.00019996,2]
[360232906,1746642642094,-198.6964292,0.00019996,2]
[360232907,1746642642103,-450.0,0.00019996,2]
[360232908,1746642642113,-1142.8,0.00019996,2]
[360232909,1746642642124,-450.0,0.00019996,2]
[360232910,1746642642134,-450.0,0.00019996,2]
[360232911,1746642642143,-450.0,0.00019996,2]
[360232912,1746642642153,-422.1361047,0.00019996,2]
[360232913,1746642642163,-450.0,0.00019996,2]
[360232914,1746642642172,-450.0,0.00019996,2]
[360232915,1746642642182,-674.82,0.00019996,2]
[360232916,1746642642191,-450.0,0.00019996,2]
[360232917,1746642642201,-450.0,0.00019996,2]
[360232918,1746642642211,-981.75,0.00019996,2]
[360232919,1746642642221,-450.0,0.00019996,2]
[360232920,1746642642231,-450.0,0.00019996,2]
[360232921,1746642642241,-450.0,0.00019996,2]
[360232922,1746642642251,-500.0,0.00019996,2]
[360232923,1746642642261,-2215.8,0.00019996,2]
[360232924,1746642642271,-450.0,0.00019996,2]
[360232925,1746642642280,-706.57,0.00019996,2]
[360232926,1746642642290,-450.0,0.00019996,2]
[360232927,1746642642299,-450.0,0.00019996,2]
[360232928,1746642642309,-450.0,0.00019996,2]
[360232929,1746642642319,-450.0,0.00019996,2]
[360232930,1746642642329,-762.39,0.00019996,2]
[360232931,1746642642339,-551.36,0.00019996,2]
[360232932,1746642642349,-450.0,0.00019996,2]
[360232933,1746642642359,-373.09,0.00019996,2]
[360232934,1746642642370,-450.0,0.00019996,2]
[360232935,1746642642382,-450.0,0.00019996,2]
[360232936,1746642642392,-476.59,0.00019996,2]
[360232937,1746642642401,-450.0,0.00019996,2]
[360232938,1746642642411,-10458.04,0.00019996,2]
[360232939,1746642642422,-450.0,0.00019996,2]
[360232940,1746642642432,-450.0,0.00019996,2]
[360232941,1746642642441,-736.06,0.00019996,2]
[360232942,1746642642451,-1262.46,0.00019996,2]
[360232943,1746642642461,-4012.09,0.00019996,2]
[360232944,1746642642471,-450.0,0.00019996,2]
[360232945,1746642642481,-450.0,0.00019996,2]
[360232946,1746642642490,-450.0,0.00019996,2]
[360232947,1746642642500,-1782.08,0.00019996,2]
[360232948,1746642642509,-604.71,0.00019996,2]
[360232949,1746642642518,-9971.69,0.00019996,2]
[360232950,1746642642528,-450.0,0.00019996,2]
[360232951,1746642642538,-450.0,0.00019996,2]
[360232952,1746642642548,-450.0,0.00019996,2]
[360232953,1746642642557,-250.0,0.00019997,2]
[360232954,1746642642567,-450.0,0.00019997,2]
[360232955,1746642642577,-450.0,0.00019997,2]
[360232956,1746642642586,-450.0,0.00019997,2]
[360232957,1746642642596,-450.0,0.00019997,2]
[360232958,1746642642605,-550.0,0.00019997,2]
[360232959,1746642642616,-477.39953609,0.00019997,2]
[360232960,1746642642626,-450.0,0.00019997,2]
[360232961,1746642642636,-450.0,0.00019997,2]
[360232962,1746642642646,-450.0,0.00019997,2]
[360232963,1746642642655,-450.0,0.00019997,2]
[360232964,1746642642665,-490.0,0.00019997,2]
[360232965,1746642642674,-245.08620136,0.00019997,2]
[360232966,1746642642684,-450.0,0.00019997,2]
[360232967,1746642642693,-450.0,0.00019997,2]
[360232968,1746642642702,-450.0,0.00019997,2]
[360232969,1746642642712,-339.35195998,0.00019997,2]
[360232970,1746642642722,-450.0,0.00019997,2]
[360232971,1746642642731,-450.0,0.00019997,2]
[360232972,1746642642741,-500.0,0.00019997,2]
[360232973,1746642642750,-450.0,0.00019997,2]
[360232974,1746642642760,-450.0,0.00019997,2]
[360232975,1746642642769,-221.07,0.00019997,2]
[360232976,1746642642778,-500.0,0.00019997,2]
[360232977,1746642642788,-450.0,0.00019997,2]
[360232978,1746642642798,-500.0,0.00019997,2]
[360232979,1746642642809,-450.0,0.00019997,2]
[360232980,1746642642819,-573.59694529,0.00019997,2]
[360232981,1746642642829,-220.69,0.00019997,2]
[360232982,1746642642839,-450.0,0.00019997,2]
[360232983,1746642642848,-450.0,0.00019997,2]
[360232984,1746642642858,-450.0,0.00019997,2]
[360232985,1746642642868,-450.0,0.00019997,2]
[360232986,1746642642877,-450.0,0.00019997,2]
[360232987,1746642642887,-450.0,0.00019997,2]
[360232988,1746642642897,-450.0,0.00019997,2]
[360232989,1746642642908,-325.98266148,0.00019997,2]
[360232990,1746642642918,-595.63109854,0.00019997,2]
[360232991,1746642642927,-259.78755968,0.00019997,2]
[360232992,1746642642937,-375.20203429,0.00019997,2]
[360232993,1746642642947,-450.0,0.00019997,2]
[360232994,1746642642958,-450.0,0.00019997,2]
[360232995,1746642642969,-450.0,0.00019997,2]
[360232997,1746642642979,-450.0,0.00019997,2]
[360232998,1746642642990,-450.0,0.00019997,2]
[360232999,1746642643000,-450.0,0.00019997,2]
[360233000,1746642643010,-473.76695572,0.00019997,2]
[360233001,1746642643019,-265.01911376,0.00019997,2]
[360233002,1746642643029,-470.0,0.00019997,2]
[360233003,1746642643039,-450.0,0.00019997,2]
[360233004,1746642643049,-450.0,0.00019997,2]
[360233006,1746642643059,-286.3834558,0.00019997,2]
[360233008,1746642643069,-450.0,0.00019997,2]
[360233010,1746642643079,-450.0,0.00019997,2]
[360233013,1746642643089,-450.0,0.00019997,2]
[360233016,1746642643099,-450.0,0.00019997,2]
[360233019,1746642643109,-450.0,0.00019997,2]
[360233020,1746642643120,-450.0,0.00019997,2]
[360233023,1746642643131,-450.0,0.00019997,2]
[360233026,1746642643143,-300.0,0.00019997,2]
[360233028,1746642643153,-450.0,0.00019997,2]
[360233031,1746642643164,-450.0,0.00019997,2]
[360233033,1746642643174,-470.0,0.00019997,2]
[360233035,1746642643184,-450.0,0.00019997,2]
[360233037,1746642643194,-470.0,0.00019997,2]
[360233038,1746642643204,-549.34219844,0.00019997,2]
[360233039,1746642643214,-432.11,0.00019997,2]
[360233040,1746642643224,-450.0,0.00019997,2]
[360233041,1746642643233,-674.82,0.00019997,2]
[360233042,1746642643244,-674.82,0.00019997,2]
[360233043,1746642643254,-450.0,0.00019997,2]
[360233044,1746642643264,-450.0,0.00019997,2]
[360233045,1746642643274,-450.0,0.00019997,2]
[360233046,1746642643284,-981.75,0.00019997,2]
[360233047,1746642643294,-981.75,0.00019997,2]
[360233048,1746642643304,-450.0,0.00019997,2]
[360233049,1746642643313,-450.0,0.00019997,2]
[360233050,1746642643323,-450.0,0.00019997,2]
[360233051,1746642643332,-450.0,0.00019997,2]
[360233052,1746642643342,-460.4631633,0.00019997,2]
[360233053,1746642643352,-450.0,0.00019997,2]
[360233054,1746642643362,-450.0,0.00019997,2]
[360233055,1746642643375,-450.0,0.00019997,2]
[360233056,1746642643385,-450.0,0.00019997,2]
[360233057,1746642643395,-450.0,0.00019997,2]
[360233058,1746642643405,-450.0,0.00019997,2]
[360233059,1746642643415,-450.0,0.00019997,2]
[360233060,1746642643424,-450.0,0.00019997,2]
[360233061,1746642643434,-450.0,0.00019997,2]
[360233062,1746642643444,-500.0,0.00019997,2]
[360233063,1746642643454,-450.0,0.00019997,2]
[360233064,1746642643466,-461.48757921,0.00019997,2]
[360233065,1746642643475,-450.0,0.00019997,2]
[360233066,1746642643485,-2215.8,0.00019997,2]
[360233067,1746642643494,-2215.8,0.00019997,2]
[360233068,1746642643503,-450.0,0.00019997,2]
[360233070,1746642643512,-586.92682122,0.00019997,2]
[360233072,1746642643521,-470.0,0.00019997,2]
[360233074,1746642643531,-450.0,0.00019997,2]
[360233076,1746642643540,-450.0,0.00019997,2]
[360233077,1746642643550,-706.57,0.00019997,2]
[360233079,1746642643560,-706.57,0.00019997,2]
[360233081,1746642643569,-450.0,0.00019997,2]
[360233083,1746642643579,-450.0,0.00019997,2]
[360233085,1746642643589,-450.0,0.00019997,2]
[360233087,1746642643599,-470.47522902,0.00019997,2]
[360233090,1746642643608,-450.0,0.00019997,2]
[360233091,1746642643620,-450.0,0.00019997,2]
[360233093,1746642643629,-450.0,0.00019997,2]
[360233095,1746642643639,-450.0,0.00019997,2]
[360233096,1746642643648,-450.0,0.00019997,2]
[360233097,1746642643658,-450.0,0.00019997,2]
[360233099,1746642643667,-450.0,0.00019997,2]
[360233101,1746642643678,-762.39,0.00019997,2]
[360233102,1746642643687,-762.39,0.00019997,2]
[360233103,1746642643696,-450.0,0.00019997,2]
[360233104,1746642643706,-450.0,0.00019997,2]
[360233105,1746642643715,-450.0,0.00019997,2]
[360233106,1746642643726,-500.0,0.00019997,2]
[360233107,1746642643736,-427.98571566,0.00019997,2]
[360233108,1746642643746,-500.0,0.00019997,2]
[360233109,1746642643757,-500.0,0.00019997,2]
[360233110,1746642643768,-500.0,0.00019997,2]
[360233111,1746642643778,-500.0,0.00019997,2]
[360233112,1746642643790,-500.0,0.00019997,2]
[360233113,1746642643802,-551.36,0.00019997,2]
[360233114,1746642643814,-551.36,0.00019997,2]
[360233115,1746642643823,-571.63815278,0.00019997,2]
[360233116,1746642643833,-450.0,0.00019997,2]
[360233117,1746642643843,-450.0,0.00019997,2]
[360233118,1746642643854,-450.0,0.00019997,2]
[360233119,1746642643863,-450.0,0.00019997,2]
[360233120,1746642643874,-450.0,0.00019997,2]
[360233121,1746642643883,-450.0,0.00019997,2]
[360233122,1746642643893,-450.0,0.00019997,2]
[360233123,1746642643902,-476.59,0.00019997,2]
[360233124,1746642643912,-476.59,0.00019997,2]
[360233125,1746642643922,-450.0,0.00019997,2]
[360233126,1746642643933,-450.0,0.00019997,2]
[360233127,1746642643943,-697.59,0.00019997,2]
[360233128,1746642643953,-450.0,0.00019997,2]
[360233129,1746642643962,-450.0,0.00019997,2]
[360233130,1746642643971,-450.0,0.00019997,2]
[360233131,1746642643980,-10458.04,0.00019997,2]
[360233132,1746642643990,-10458.04,0.00019997,2]
[360233133,1746642644000,-450.0,0.00019997,2]
[360233134,1746642644009,-432.46,0.00019997,2]
[360233135,1746642644019,-365.1,0.00019997,2]
[360233136,1746642644028,-580.62,0.00019997,2]
[360233137,1746642644038,-572.36824906,0.00019997,2]
[360233138,1746642644048,-736.06,0.00019997,2]
[360233139,1746642644057,-736.06,0.00019997,2]
[360233140,1746642644066,-1262.46,0.00019997,2]
[360233141,1746642644076,-450.0,0.00019997,2]
[360233142,1746642644086,-857.48,0.00019997,2]
[360233143,1746642644095,-4012.09,0.00019997,2]
[360233144,1746642644105,-4012.09,0.00019997,2]
[360233145,1746642644114,-410.05541046,0.00019997,2]
[360233146,1746642644125,-450.0,0.00019997,2]
[360233147,1746642644135,-493.33145058,0.00019997,2]
[360233148,1746642644145,-455.62646919,0.00019997,2]
[360233149,1746642644155,-450.0,0.00019997,2]
[360233150,1746642644164,-450.0,0.00019997,2]
[360233151,1746642644174,-450.0,0.00019997,2]
[360233152,1746642644183,-450.0,0.00019997,2]
[360233153,1746642644192,-235.28,0.00019997,2]
[360233154,1746642644202,-1782.08,0.00019997,2]
[360233155,1746642644211,-1782.08,0.00019997,2]
[360233156,1746642644221,-450.0,0.00019997,2]
[360233157,1746642644230,-472.83333276,0.00019997,2]
[360233158,1746642644240,-450.0,0.00019997,2]
[360233159,1746642644250,-450.0,0.00019997,2]
[360233160,1746642644259,-450.0,0.00019997,2]
[360233161,1746642644268,-604.71,0.00019997,2]
[360233162,1746642644278,-450.0,0.00019997,2]
[360233163,1746642644287,-9971.69,0.00019997,2]
[360233164,1746642644297,-450.0,0.00019997,2]
[360233165,1746642644306,-253.23,0.00019998,2]
[360233166,1746642644315,-450.0,0.00019998,2]
[360233167,1746642644325,-450.0,0.00019998,2]
[360233168,1746642644334,-450.0,0.00019998,2]
[360233169,1746642644343,-450.0,0.00019998,2]
[360233170,1746642644353,-450.0,0.00019998,2]
[360233171,1746642644362,-450.0,0.00019998,2]
[360233172,1746642644375,-450.0,0.00019998,2]
[360233173,1746642644386,-411.48709263,0.00019998,2]
[360233174,1746642644395,-253.96,0.00019998,2]
[360233175,1746642644405,-343.83,0.00019998,2]
[360233176,1746642644414,-321.93679316,0.00019998,2]
[360233177,1746642644424,-450.0,0.00019998,2]
[360233178,1746642644434,-450.0,0.00019998,2]
[360233179,1746642644444,-450.0,0.00019998,2]
[360233180,1746642644455,-450.0,0.00019998,2]
[360233181,1746642644465,-450.0,0.00019998,2]
[360233182,1746642644474,-450.0,0.00019998,2]
[360233183,1746642644484,-480.74,0.00019998,2]
[360233184,1746642644494,-450.0,0.00019998,2]
[360233185,1746642644503,-1142.8,0.00019998,2]
[360233186,1746642644513,-1142.8,0.00019998,2]
[360233187,1746642644522,-1142.8,0.00019998,2]
[360233188,1746642644532,-1142.8,0.00019998,2]
[360233189,1746642644542,-1142.8,0.00019998,2]
[360233190,1746642644552,-1142.8,0.00019998,2]
[360233191,1746642644562,-450.0,0.00019998,2]
[360233192,1746642644571,-178.98210353,0.00019998,2]
[360233193,1746642644580,-450.0,0.00019998,2]
[360233194,1746642644589,-450.0,0.00019998,2]
[360233195,1746642644598,-450.0,0.00019998,2]
[360233196,1746642644608,-450.0,0.00019998,2]
[360233197,1746642644617,-365.69,0.00019998,2]
[360233198,1746642644626,-674.82,0.00019998,2]
[360233199,1746642644637,-674.82,0.00019998,2]
[360233200,1746642644646,-450.0,0.00019998,2]
[360233201,1746642644656,-450.0,0.00019998,2]
[360233202,1746642644665,-981.75,0.00019998,2]
[360233203,1746642644675,-981.75,0.00019998,2]
[360233204,1746642644684,-470.0,0.00019998,2]
[360233205,1746642644693,-450.0,0.00019998,2]
[360233206,1746642644703,-450.0,0.00019998,2]
[360233207,1746642644713,-398.67,0.00019998,2]
[360233208,1746642644722,-375.02793451,0.00019998,2]
[360233209,1746642644731,-450.0,0.00019998,2]
[360233210,1746642644741,-450.0,0.00019998,2]
[360233211,1746642644750,-450.0,0.00019998,2]
[360233212,1746642644760,-450.0,0.00019998,2]
[360233213,1746642644770,-500.0,0.00019998,2]
[360233214,1746642644779,-500.0,0.00019998,2]
[360233215,1746642644788,-488.5594407,0.00019998,2]
[360233216,1746642644798,-2215.8,0.00019998,2]
[360233217,1746642644808,-2215.8,0.00019998,2]
[360233218,1746642644818,-450.0,0.00019998,2]
[360233219,1746642644831,-450.0,0.00019998,2]
[360233220,1746642644842,-482.4334705,0.00019998,2]
[360233221,1746642644852,-706.57,0.00019998,2]
[360233222,1746642644863,-706.57,0.00019998,2]
[360233223,1746642644873,-532.9,0.00019998,2]
[360233224,1746642644883,-450.0,0.00019998,2]
[360233225,1746642644894,-363.54194514,0.00019998,2]
[360233226,1746642644904,-450.0,0.00019998,2]
[360233227,1746642644915,-252.77708237,0.00019998,2]
[360233228,1746642644926,-450.0,0.00019998,2]
[360233229,1746642645118,-450.0,0.00019998,2]
[360233230,1746642645129,-450.0,0.00019998,2]
[360233231,1746642645139,-450.0,0.00019998,2]
[360233232,1746642645149,-762.39,0.00019998,2]
[360233233,1746642645159,-762.39,0.00019998,2]
[360233234,1746642645168,-450.0,0.00019998,2]
[360233235,1746642645178,-450.0,0.00019998,2]
[360233236,1746642645188,-450.0,0.00019998,2]
[360233237,1746642645198,-450.0,0.00019998,2]
[360233238,1746642645207,-551.36,0.00019998,2]
[360233239,1746642645217,-551.36,0.00019998,2]
[360233240,1746642645226,-304.38046658,0.00019998,2]
[360233241,1746642645236,-521.41,0.00019998,2]
[360233242,1746642645245,-450.0,0.00019998,2]
[360233243,1746642645254,-296.08,0.00019998,2]
[360233244,1746642645263,-476.59,0.00019998,2]
[360233245,1746642645273,-476.59,0.00019998,2]
[360233246,1746642645283,-450.0,0.00019998,2]
[360233247,1746642645294,-179.16283104,0.00019998,2]
[360233248,1746642645304,-697.59,0.00019998,2]
[360233249,1746642645314,-697.59,0.00019998,2]
[360233250,1746642645324,-697.59,0.00019998,2]
[360233251,1746642645334,-697.59,0.00019998,2]
[360233252,1746642645344,-697.59,0.00019998,2]
[360233253,1746642645353,-10458.04,0.00019998,2]
[360233254,1746642645363,-10458.04,0.00019998,2]
[360233255,1746642645379,-736.06,0.00019998,2]
[360233256,1746642645388,-1262.46,0.00019998,2]
[360233257,1746642645397,-736.06,0.00019998,2]
[360233258,1746642645407,-1262.46,0.00019998,2]
[360233259,1746642645418,-1262.46,0.00019998,2]
[360233260,1746642645427,-1262.46,0.00019998,2]
[360233261,1746642645438,-857.48,0.00019998,2]
[360233262,1746642645448,-857.48,0.00019998,2]
[360233263,1746642645459,-857.48,0.00019998,2]
[360233264,1746642645468,-857.48,0.00019998,2]
[360233265,1746642645479,-857.48,0.00019998,2]
[360233266,1746642645489,-4012.09,0.00019998,2]
[360233267,1746642645498,-4012.09,0.00019998,2]
[360233268,1746642645508,-450.0,0.00019998,2]
[360233269,1746642645518,-450.0,0.00019998,2]
[360233270,1746642645528,-1782.08,0.00019998,2]
[360233271,1746642645538,-1782.08,0.00019998,2]
[360233272,1746642645549,-450.0,0.00019998,2]
[360233273,1746642645559,-450.0,0.00019998,2]
[360233274,1746642645569,-450.0,0.00019998,2]
[360233275,1746642645579,-450.0,0.00019998,2]
[360233276,1746642645588,-450.0,0.00019998,2]
[360233277,1746642645598,-604.71,0.00019998,2]
[360233278,1746642645608,-604.71,0.00019998,2]
[360233279,1746642645619,-604.71,0.00019998,2]
[360233280,1746642645629,-604.71,0.00019998,2]
[360233281,1746642645639,-450.0,0.00019998,2]
[360233282,1746642645649,-450.0,0.00019998,2]
[360233283,1746642645660,-450.0,0.00019998,2]
[360233284,1746642645670,-450.0,0.00019998,2]
[360233285,1746642645679,-450.0,0.00019998,2]
[360233286,1746642645690,-9971.69,0.00019998,2]
[360233287,1746642645700,-9971.69,0.00019998,2]
[360233288,1746642645710,-9971.69,0.00019998,2]
[360233289,1746642645720,-9971.69,0.00019998,2]
[360233290,1746642645729,-450.0,0.00019998,2]
[360233291,1746642645739,-450.0,0.00019998,2]
[360233292,1746642645749,-450.0,0.00019998,2]
[360233293,1746642645759,-450.0,0.00019998,2]
[360233294,1746642645770,-450.0,0.00019998,2]
[360233295,1746642645780,-194.69768038,0.00019998,2]
[360233296,1746642645790,-1050.0,0.00019999,2]
[360233297,1746642645801,-356957.90252833,0.00019999,2]
[360233298,1746642645811,-150.0,0.00019999,2]
[360233299,1746642645822,-1280.64646552,0.00019999,2]
[360233300,1746642645833,-7090.45834243,0.00019999,2]
[360233301,1746642645843,-11910.51042394,0.00019999,2]
[360233302,1746642645854,-151.0,0.00019999,2]
[360233303,1746642645863,-151.0,0.00019999,2]
[360233304,1746642645875,-151.0,0.00019999,2]
[360233305,1746642645886,-151.0,0.00019999,2]
[360233306,1746642645896,-151.0,0.00019999,2]
[360233308,1746642645907,-151.0,0.00019999,2]
[360233309,1746642645916,-151.0,0.00019999,2]
[360233310,1746642645926,-151.0,0.00019999,2]
[360233311,1746642645935,-151.0,0.00019999,2]
[360233312,1746642645945,-151.0,0.00019999,2]
[360233313,1746642645955,-151.0,0.00019999,2]
[360233314,1746642645966,-151.0,0.00019999,2]
[360233315,1746642645977,-151.0,0.00019999,2]
[360233316,1746642645987,-151.0,0.00019999,2]
[360233317,1746642645996,-292.457302,0.00019999,2]
[360233318,1746642646005,-151.0,0.00019999,2]
[360233319,1746642646016,-151.0,0.00019999,2]
[360233320,1746642646026,-151.0,0.00019999,2]
[360233321,1746642646036,-151.0,0.00019999,2]
[360233322,1746642646046,-259.65945353,0.00019999,2]
[360233323,1746642646056,-151.0,0.00019999,2]
[360233324,1746642646067,-184.98352013,0.00019999,2]
[360233325,1746642646076,-150.0,0.00019999,2]
[360233326,1746642646086,-150.0,0.00019999,2]